bitfinex-derivatives/quotes_SOLF0:USTF0_20250709
["timestamp","ask_amount","ask_price","bid_price","bid_amount"]
[1752063384961,6.4736,154.45,154.44,0.043378]
[1752063385362,2.96008638,154.45,154.37,12.25208638]
[1752063385658,6.4746,154.43,154.37,5.25208638]
[1752063385970,6.4746,154.43,154.4,6.4755]
[1752063386359,6.4746,154.43,154.37,5.25208638]
[1752063386660,6.4746,154.43,154.4,6.51763362]
[1752063387253,2.96008638,154.48,154.41,2.96008638]
[1752063387458,2.96008638,154.48,154.4,0.04223362]
[1752063387658,2.96008638,154.44,154.38,9.1631]
[1752063387863,6.4746,154.43,154.39,6.4758]
[1752063388058,6.4746,154.43,154.42,0.04083168]
[1752063389660,8.97710075,154.5,154.42,0.04083168]
[1752063389860,2.96008638,154.45,154.42,0.04083168]
[1752063390056,6.4744,154.44,154.4,6.4753]
[1752063390263,2.96008638,154.45,154.4,6.4753]
[1752063390465,8.36319926,154.49,154.42,0.04187523]
[1752063390765,6.4735,154.46,154.42,0.04187523]
[1752063391259,8.97710075,154.5,154.42,3.00196161]
[1752063391565,8.51466758,154.49,154.43,2.96008638]
[1752063391763,8.51466758,154.48,154.43,2.96008638]
[1752063391960,2.96008638,154.51,154.43,5.25018638]
[1752063392172,2.96008638,154.49,154.43,2.2901]
[1752063392459,7.40838389,154.53,154.43,5.25018638]
[1752063392766,6.4721,154.49,154.45,6.4732]
[1752063393163,5.22818389,154.53,154.44,6.51739866]
[1752063393369,6.4727,154.48,154.44,6.51739866]
[1752063393765,6.4727,154.48,154.45,6.4736]
[1752063393961,6.4727,154.48,154.44,0.04349866]
[1752063394166,6.4727,154.48,154.44,6.51729866]
[1752063394666,6.4728,154.47,154.44,6.51729866]
[1752063394869,2.96008638,154.48,154.44,0.04349866]
[1752063395162,2.96008638,154.46,154.44,0.04349866]
[1752063395561,8.34276539,154.5,154.44,0.04349866]
[1752063395761,2.96008638,154.48,154.44,0.04349866]
[1752063395966,6.4732,154.47,154.44,0.04349866]
[1752063396167,2.96008638,154.48,154.44,0.04349866]
[1752063396564,6.51807998,154.47,154.44,6.51749866]
[1752063396770,0.04507998,154.47,154.44,0.04349866]
[1752063397072,0.04507998,154.47,154.44,6.51729866]
[1752063398068,0.04507998,154.47,154.45,6.4734]
[1752063398266,0.04507998,154.47,154.44,0.04349866]
[1752063398771,0.04507998,154.47,154.45,6.4734]
[1752063399569,6.4733,154.46,154.44,0.04349866]
[1752063399771,3.00516636,154.47,154.44,0.04349866]
[1752063401168,6.4736,154.45,154.44,0.04349866]
[1752063401969,3.00516636,154.47,154.44,0.04349866]
[1752063402567,9.47806636,154.47,154.44,0.04349866]
[1752063403370,3.00516636,154.47,154.44,0.04349866]
[1752063404474,9.47806636,154.47,154.44,0.04349866]
[1752063404672,2.96008638,154.45,154.44,0.04349866]
[1752063405281,0.04507998,154.47,154.44,0.04349866]
[1752063405868,2.96008638,154.46,154.44,0.04349866]
[1752063406076,0.04507998,154.47,154.44,0.04349866]
[1752063406372,0.04507998,154.47,154.45,6.4735]
[1752063407079,0.04507998,154.47,154.44,6.51739866]
[1752063407378,5.22818389,154.53,154.44,35.52349866]
[1752063407379,5.18480588,154.53,154.44,35.52349866]
[1752063407579,5.18480588,154.53,154.45,4.4958]
[1752063408184,5.18480588,154.53,154.5,2.96008638]
[1752063408380,5.18480588,154.53,154.45,4.4958]
[1752063408678,5.18480588,154.53,154.49,6.4719]
[1752063408878,5.18480588,154.53,154.46,2.96008638]
[1752063409073,2.96008638,154.52,154.47,0.04630084]
[1752063409276,8.14489226,154.53,154.47,0.04630084]
[1752063409574,5.18480588,154.53,154.47,0.04630084]
[1752063409779,5.18480588,154.53,154.52,6.4707]
[1752063409978,5.18480588,154.53,154.49,2.96008638]
[1752063410371,5.18480588,154.53,154.49,3.00692865]
[1752063410770,5.18480588,154.53,154.49,0.04684227]
[1752063411779,5.18480588,154.53,154.49,3.00692865]
[1752063412084,5.18480588,154.53,154.49,0.04684227]
[1752063412679,11.3989454,154.52,154.49,0.04684227]
[1752063412871,2.96008638,154.52,154.49,0.04684227]
[1752063413075,9.43078638,154.52,154.49,0.04684227]
[1752063413675,11.65510588,154.53,154.49,0.04684227]
[1752063413871,8.44130174,154.52,154.49,0.04684227]
[1752063414078,8.14489226,154.53,154.49,0.04684227]
[1752063414272,14.91623169,154.52,154.49,0.04684227]
[1752063414474,9.43078638,154.52,154.49,0.04684227]
[1752063414679,2.96008638,154.52,154.49,0.04684227]
[1752063414879,6.4711,154.51,154.49,0.04684227]
[1752063415081,5.18480588,154.53,154.49,0.04684227]
[1752063415082,2.96008638,154.5,154.49,0.04684227]
[1752063415278,6.4721,154.49,154.44,6.4739]
[1752063415784,5.18480588,154.53,154.42,6.4748]
[1752063415785,6.4731,154.47,154.42,6.4748]
[1752063416086,2.96008638,154.46,154.38,2.2887]
[1752063416284,2.96008638,154.46,154.38,5.24878638]
[1752063416479,0.04839361,154.44,154.4,0.04764584]
[1752063417184,3.00847999,154.44,154.4,0.04764584]
[1752063417487,9.48287999,154.44,154.4,0.04764584]
[1752063417785,6.4746,154.43,154.4,0.04764584]
[1752063418085,3.00847999,154.44,154.4,0.04764584]
[1752063418287,2.96008638,154.42,154.4,0.04764584]
[1752063418582,2.96008638,154.42,154.34,2.2849]
[1752063418583,2.96008638,154.42,154.33,2.233]
[1752063418782,4.43086358,154.38,154.3,31.91590895]
[1752063418998,6.4777,154.36,154.3,14.13730358]
[1752063419180,6.4777,154.36,154.32,6.4788]
[1752063419781,6.52332296,154.36,154.32,6.4788]
[1752063420684,0.04562296,154.36,154.34,4.43086358]
[1752063421888,0.04562296,154.36,154.35,6.4778]
[1752063422080,0.04562296,154.36,154.32,0.04232714]
[1752063422486,4.47648654,154.36,154.32,0.04232714]
[1752063422695,4.43086358,154.34,154.32,0.04232714]
[1752063422888,4.43086358,154.34,154.26,2.233]
[1752063422889,4.43086358,154.34,154.23,16.28326716]
[1752063423106,4.43086358,154.32,154.23,11.85240358]
[1752063423388,6.4804,154.29,154.22,6.65226358]
[1752063423593,4.43086358,154.3,154.21,559.14]
[1752063423795,6.481,154.28,154.24,6.4821]
[1752063423987,6.481,154.28,154.21,559.14]
[1752063423988,4.43086358,154.28,154.19,6.61876358]
[1752063424290,6.4823,154.25,154.21,6.4834]
[1752063424488,4.43086358,154.26,154.18,2.2214]
[1752063424690,4.43086358,154.24,154.15,6.61876358]
[1752063424993,10.91356358,154.24,154.15,6.61876358]
[1752063425292,0.04252689,154.21,154.14,6.65226358]
[1752063425795,4.09079294,154.34,154.18,4.43086358]
[1752063425988,1021.66436433,154.35,154.2,4.43086358]
[1752063425989,4.43086358,154.28,154.2,4.43086358]
[1752063426192,6.482,154.26,154.21,6.4834]
[1752063426694,4.43086358,154.28,154.21,6.4834]
[1752063426994,0.04213471,154.25,154.2,4.43086358]
[1752063427393,6.4815,154.27,154.2,4.43086358]
[1752063427595,0.04292928,154.24,154.2,4.43086358]
[1752063427796,0.04292928,154.24,154.18,4.43086358]
[1752063428295,6.4826,154.24,154.19,6.4845]
[1752063428493,0.04216637,154.23,154.16,4.43086358]
[1752063428896,0.04216637,154.23,154.2,6.4838]
[1752063429092,0.04216637,154.23,154.16,4.43086358]
[1752063429293,0.04216637,154.23,154.17,4.43086358]
[1752063429688,0.04216637,154.23,154.14,2.2214]
[1752063429689,0.04216637,154.23,154.19,4.43086358]
[1752063430102,0.04216637,154.23,154.14,11.10868619]
[1752063430299,0.04216637,154.23,154.2,4.43086358]
[1752063430492,0.04216637,154.23,154.21,6.4837]
[1752063430689,0.04216637,154.23,154.17,4.43086358]
[1752063431093,4.47302995,154.23,154.15,4.43086358]
[1752063431394,4.43086358,154.21,154.14,2.2214]
[1752063432088,0.04666927,154.19,154.14,6.4864]
[1752063432295,4.47753285,154.19,154.14,6.4864]
[1752063432595,4.47753285,154.19,154.12,2.1879]
[1752063432898,0.04666927,154.19,154.12,2.1879]
[1752063433098,6.485,154.18,154.12,2.1879]
[1752063433496,6.485,154.18,154.14,6.4863]
[1752063433901,6.53136927,154.19,154.13,0.04718647]
[1752063434196,6.53136927,154.19,154.15,6.4859]
[1752063434600,6.53136927,154.19,154.13,0.04718647]
[1752063434799,0.04666927,154.19,154.13,0.04718647]
[1752063435494,4.43086358,154.17,154.13,0.04718647]
[1752063435903,6.4859,154.16,154.13,0.04718647]
[1752063436093,4.43086358,154.17,154.13,0.04718647]
[1752063436295,0.04666927,154.19,154.13,0.04718647]
[1752063436600,4.43086358,154.17,154.13,0.04718647]
[1752063436997,4.43086358,154.17,154.13,6.53418647]
[1752063438097,6.4859,154.16,154.13,6.53418647]
[1752063438299,6.4859,154.16,154.13,0.04718647]
[1752063439203,6.4855,154.17,154.13,6.53398647]
[1752063440303,6.4859,154.16,154.13,6.53398647]
[1752063442104,4.43086358,154.18,154.13,0.04718647]
[1752063442301,4.39374155,154.18,154.13,0.04718647]
[1752063442603,6.4861,154.16,154.13,6.53398647]
[1752063445001,6.4861,154.16,154.14,6.4866]
[1752063445300,6.4856,154.17,154.14,6.4866]
[1752063446108,6.486,154.16,154.13,6.53418647]
[1752063446906,6.4862,154.15,154.13,0.04718647]
[1752063447703,6.53222551,154.16,154.13,6.53428647]
[1752063450513,6.4863,154.15,154.13,6.53428647]
[1752063450805,0.04622551,154.16,154.13,6.53428647]
[1752063451007,0.04622551,154.16,154.14,6.4865]
[1752063451208,6.53222551,154.16,154.13,0.04718647]
[1752063451922,6.4862,154.15,154.13,6.53408647]
[1752063452313,6.4862,154.15,154.13,0.04718647]
[1752063453412,6.4862,154.15,154.13,6.53418647]
[1752063453713,6.53222551,154.16,154.13,0.04718647]
[1752063454012,6.4863,154.15,154.13,6.53408647]
[1752063454212,6.4863,154.15,154.13,0.04718647]
[1752063455211,0.04622551,154.16,154.13,6.53418647]
[1752063455914,6.53202551,154.16,154.13,6.53418647]
[1752063456916,9.49374701,154.16,154.13,6.53418647]
[1752063457216,6.53202551,154.16,154.13,6.53418647]
[1752063457418,6.53202551,154.16,154.14,6.4866]
[1752063460714,6.4863,154.15,154.13,6.53398647]
[1752063460907,0.04622551,154.16,154.13,0.04718647]
[1752063461111,0.04622551,154.16,154.13,6.53408647]
[1752063461313,9.49404701,154.16,154.13,6.53408647]
[1752063461616,3.00794701,154.16,154.13,0.04718647]
[1752063461917,6.4865,154.15,154.13,0.04718647]
[1752063463718,9.49394701,154.16,154.13,6.53418647]
[1752063464416,6.4865,154.15,154.13,0.04718647]
[1752063464615,3.00794701,154.16,154.13,0.04718647]
[1752063464815,6.4862,154.15,154.13,0.04718647]
[1752063465011,6.4862,154.15,154.13,6.53428647]
[1752063465214,6.4862,154.15,154.13,0.04718647]
[1752063466114,6.4866,154.14,154.13,0.04718647]
[1752063466311,3.00794701,154.16,154.13,0.04718647]
[1752063466516,10.65096717,154.15,154.13,0.04718647]
[1752063466716,3.00794701,154.16,154.13,0.04718647]
[1752063466921,4.16436717,154.15,154.13,0.04718647]
[1752063467121,3.00794701,154.16,154.13,0.04718647]
[1752063467323,6.4866,154.14,154.13,0.04718647]
[1752063467622,10.65096717,154.14,154.13,0.04718647]
[1752063469621,4.16436717,154.14,154.13,0.04718647]
[1752063470825,0.04622551,154.16,154.13,0.04718647]
[1752063471824,0.04622551,154.16,154.14,6.4864]
[1752063472225,6.53202551,154.16,154.14,6.4864]
[1752063473221,6.4864,154.15,154.13,0.04718647]
[1752063473725,3.00794701,154.16,154.13,0.04718647]
[1752063473921,9.49384701,154.16,154.13,6.53408647]
[1752063475227,6.53212551,154.16,154.13,6.53408647]
[1752063475432,8.10685282,154.15,154.13,6.53408647]
[1752063475622,6.53212551,154.16,154.13,6.53408647]
[1752063475823,8.10685224,154.15,154.13,6.53408647]
[1752063476024,6.53212551,154.16,154.13,6.53408647]
[1752063477220,0.04622551,154.16,154.13,0.04718647]
[1752063477622,0.04622551,154.16,154.15,6.4862]
[1752063482230,0.04622551,154.16,154.14,2.1947]
[1752063482835,0.04622551,154.16,154.15,6.4862]
[1752063485621,0.04622551,154.16,154.14,2.1947]
[1752063485825,0.04622551,154.16,154.13,0.04718647]
[1752063486026,3.00794701,154.16,154.13,0.04718647]
[1752063486327,3.00794701,154.16,154.13,6.53398647]
[1752063486832,9.49374701,154.16,154.13,0.04718647]
[1752063487236,3.00794701,154.16,154.13,0.04718647]
[1752063487422,2.9617215,154.14,154.08,2.2451]
[1752063487627,3.00794701,154.16,154.08,2.2451]
[1752063487928,2.9617215,154.12,154.08,2.2451]
[1752063488128,9.4492215,154.12,154.08,8.7341]
[1752063488631,9.49767019,154.12,154.08,8.7341]
[1752063489228,0.04844869,154.12,154.09,6.4887]
[1752063489429,0.04844869,154.12,154.08,2.2451]
[1752063489921,3.01017019,154.12,154.08,2.2451]
[1752063490330,9.49767019,154.12,154.08,8.734]
[1752063491021,3.01017019,154.12,154.02,560.18]
[1752063491226,3.01017019,154.12,154.03,4.5167]
[1752063491423,2.9617215,154.11,154.03,7.4784215]
[1752063491733,2.9617215,154.11,154.05,2.9617215]
[1752063492034,2.9617215,154.11,154.07,6.4893]
[1752063492227,2.9617215,154.11,154.04,2.9617215]
[1752063492427,2.9617215,154.11,154.03,4.5167]
[1752063492627,2.9617215,154.11,154.07,6.4892]
[1752063492829,2.9617215,154.11,154.04,2.9617215]
[1752063493128,9.49797019,154.12,154.08,6.4888]
[1752063493330,0.04844869,154.12,154.06,2.9617215]
[1752063493525,0.04844869,154.12,154.1,6.4879]
[1752063493731,0.04844869,154.12,154.08,2.9617215]
[1752063494233,0.04844869,154.12,154.09,4.5281]
[1752063494430,0.04844869,154.12,154.11,6.4879]
[1752063495529,562.4182,154.21,154.1,2.9617215]
[1752063495831,2.9617215,154.19,154.1,2.9617215]
[1752063496132,2.9617215,154.19,154.09,4.5281]
[1752063496133,6.4852,154.18,154.15,6.4862]
[1752063496927,6.53094499,154.18,154.15,6.4862]
[1752063498129,0.04574499,154.18,154.16,6.4856]
[1752063498929,0.04574499,154.18,154.15,6.486]
[1752063499330,6.53074499,154.18,154.15,6.486]
[1752063499729,0.04574499,154.18,154.11,2.9617215]
[1752063499938,0.04574499,154.18,154.13,2.9617215]
[1752063500432,3.00746649,154.18,154.09,4.5281]
[1752063500627,2.9617215,154.16,154.1,2.9617215]
[1752063501026,9.4479215,154.16,154.1,2.9617215]
[1752063501224,0.04840461,154.15,154.1,2.9617215]
[1752063501634,0.04840461,154.15,154.13,6.4868]
[1752063502134,0.04840461,154.15,154.1,2.9617215]
[1752063502135,3.01012611,154.15,154.09,4.5281]
[1752063502338,3.01012611,154.15,154.11,6.4875]
[1752063502534,6.4867,154.14,154.09,4.5281]
[1752063502730,3.01012611,154.15,154.09,4.5281]
[1752063503431,0.04840461,154.15,154.09,4.5281]
[1752063503632,9.4485215,154.14,154.09,4.5281]
[1752063503936,0.04840461,154.15,154.13,6.4868]
[1752063504628,0.04840461,154.15,154.12,6.4873]
[1752063504833,6.53480461,154.15,154.12,6.4873]
[1752063505038,3.01012611,154.15,154.11,6.4878]
[1752063505236,3.01012611,154.15,154.07,2.9617215]
[1752063505530,2.181,154.19,154.03,12.982]
[1752063505531,2.9617215,154.17,154.13,6.487]
[1752063505737,2.9617215,154.17,154.09,2.9617215]
[1752063505738,2.9617215,154.19,154.11,2.9617215]
[1752063505931,0.04732497,154.13,154.11,2.9617215]
[1752063506126,6.4852,154.18,154.15,6.4862]
[1752063506331,8.7970298,154.17,154.15,6.4862]
[1752063506638,0.04477204,154.18,154.15,6.486]
[1752063506847,0.04477204,154.18,154.11,2.9617215]
[1752063507035,0.04477204,154.18,154.12,4.4704]
[1752063507338,6.52977204,154.18,154.15,6.4859]
[1752063507637,6.52977204,154.18,154.16,6.4857]
[1752063507826,0.04477204,154.18,154.13,2.9617215]
[1752063508235,0.04477204,154.18,154.17,6.4854]
[1752063509627,0.04477204,154.18,154.17,9.4471215]
[1752063510037,0.04477204,154.18,154.17,6.4854]
[1752063510542,2.9617215,154.24,154.21,6.4836]
[1752063510733,16.97601877,154.23,154.21,6.4836]
[1752063510930,9.4443215,154.24,154.21,6.4836]
[1752063511129,9.4443215,154.24,154.18,2.9617215]
[1752063511130,8.81733655,154.23,154.22,6.4833]
[1752063511338,4.62710545,154.23,154.22,6.4833]
[1752063511540,90.71943622,154.28,154.22,2.9617215]
[1752063511741,17.04763638,154.27,154.22,2.9617215]
[1752063512038,8.81442131,154.26,154.22,2.9617215]
[1752063512237,6.4815,154.27,154.23,6.4828]
[1752063512428,11.77131959,154.26,154.16,12.9715]
[1752063512628,2.9617215,154.26,154.18,2.9617215]
[1752063512837,6.4823,154.25,154.18,2.9617215]
[1752063513032,2.9617215,154.26,154.19,0.04172084]
[1752063513235,2.9617215,154.26,154.2,6.4839]
[1752063513433,2.9617215,154.24,154.19,0.04172084]
[1752063513838,6.4829,154.23,154.2,6.4839]
[1752063514037,6.4829,154.23,154.19,0.04172084]
[1752063514739,9.4443215,154.24,154.19,6.52622084]
[1752063515937,6.4829,154.23,154.19,6.52622084]
[1752063516236,90.71943622,154.28,154.19,0.04172084]
[1752063516439,93.68115772,154.28,154.21,2.9617215]
[1752063517038,2.9617215,154.28,154.23,0.04596631]
[1752063517243,2.9617215,154.3,154.23,3.00768781]
[1752063517459,6.4801,154.3,154.25,2.9617215]
[1752063517647,2.9617215,154.32,154.25,2.9617215]
[1752063517845,6.4804,154.29,154.26,6.4813]
[1752063518246,2.9617215,154.32,154.26,6.4813]
[1752063518439,6.4801,154.3,154.26,6.4813]
[1752063518644,2.9617215,154.33,154.27,3.01110914]
[1752063518842,8.83778893,154.32,154.27,3.01110914]
[1752063519147,2.2322,154.36,154.27,2.9617215]
[1752063519346,11.81941201,154.35,154.28,0.04643003]
[1752063519549,8.85769051,154.34,154.28,0.04643003]
[1752063519742,6.4794,154.32,154.28,0.04643003]
[1752063519934,2.9617215,154.31,154.28,0.04643003]
[1752063520139,2.2322,154.36,154.28,0.04643003]
[1752063520140,2.9617215,154.33,154.28,0.04643003]
[1752063520740,2.9617215,154.35,154.28,0.04643003]
[1752063521143,6.4787,154.33,154.29,6.4801]
[1752063521344,2.9617215,154.35,154.28,0.04643003]
[1752063521846,6.4793,154.32,154.28,0.04643003]
[1752063522646,6.4793,154.32,154.29,6.4803]
[1752063522846,6.4793,154.32,154.28,0.04643003]
[1752063523241,6.4796,154.31,154.28,6.52693003]
[1752063523546,2.9617215,154.34,154.27,2.9617215]
[1752063523746,6.4798,154.31,154.27,2.9617215]
[1752063523946,2.9617215,154.32,154.28,0.04778421]
[1752063524249,6.4799,154.3,154.28,0.04778421]
[1752063524546,6.4799,154.3,154.25,2.9617215]
[1752063524759,2.9617215,154.32,154.27,0.04422514]
[1752063524950,6.4804,154.29,154.27,0.04422514]
[1752063525244,2.9617215,154.32,154.27,0.04422514]
[1752063525450,6.4797,154.31,154.27,6.52502514]
[1752063525649,2.9617215,154.32,154.27,0.04422514]
[1752063525650,2.9617215,154.28,154.27,0.04422514]
[1752063526038,2.9617215,154.3,154.27,0.04422514]
[1752063526639,2.9617215,154.29,154.27,0.04422514]
[1752063527249,9.4424215,154.29,154.27,0.04422514]
[1752063527750,6.4807,154.28,154.27,0.04422514]
[1752063529451,2.9617215,154.29,154.2,2.1806]
[1752063529646,2.9617215,154.25,154.2,2.1806]
[1752063530350,4.78145183,154.3,154.2,2.1806]
[1752063530546,2.9617215,154.25,154.2,2.1806]
[1752063530747,2.9617215,154.25,154.23,6.4826]
[1752063532953,2.9617215,154.25,154.24,6.4824]
[1752063533451,2.9617215,154.27,154.2,5.1423215]
[1752063533753,2.9617215,154.27,154.25,6.4818]
[1752063533952,2.2118,154.31,154.22,2.9617215]
[1752063534153,2.9617215,154.29,154.21,5.2486215]
[1752063534747,6.481,154.28,154.25,6.4818]
[1752063535247,6.481,154.28,154.21,5.2486215]
[1752063535248,9.4431215,154.27,154.21,2.2869]
[1752063535451,2.9617215,154.27,154.21,2.2869]
[1752063536153,2.2118,154.31,154.16,7.0]
[1752063536345,2.9617215,154.27,154.19,2.9617215]
[1752063536551,9.4438215,154.25,154.22,6.483]
[1752063536752,2.9617215,154.25,154.17,7.5111215]
[1752063537245,2.9617215,154.25,154.2,6.4838]
[1752063537246,6.4829,154.23,154.2,6.4838]
[1752063537453,2.9617215,154.25,154.17,7.5111215]
[1752063537653,2.9617215,154.23,154.17,4.5494]
[1752063538653,2.9617215,154.23,154.17,7.5111215]
[1752063539254,9.4446215,154.23,154.2,6.4839]
[1752063539454,2.9617215,154.23,154.17,7.5111215]
[1752063540248,6.4827,154.24,154.21,6.4834]
[1752063540450,6.4827,154.24,154.17,7.5111215]
[1752063540850,6.4827,154.24,154.21,6.4835]
[1752063542256,6.4829,154.23,154.2,6.4839]
[1752063542553,2.9617215,154.24,154.12,567.18]
[1752063542767,6.4834,154.22,154.19,6.4843]
[1752063543056,2.9617215,154.26,154.18,2.9617215]
[1752063543852,6.4827,154.24,154.21,6.4835]
[1752063544054,2.2134,154.29,154.2,2.9617215]
[1752063544249,2.9617215,154.28,154.16,2.9617215]
[1752063544557,2.9617215,154.28,154.2,2.9617215]
[1752063544758,2.9617215,154.28,154.19,2.9617215]
[1752063544956,6.4818,154.26,154.23,6.4826]
[1752063545154,2.9617215,154.28,154.19,2.9617215]
[1752063545554,6.4818,154.26,154.23,6.4826]
[1752063545755,6.4818,154.26,154.19,2.9617215]
[1752063546156,9.4431215,154.27,154.19,2.9617215]
[1752063546359,9.4431215,154.27,154.2,2.9617215]
[1752063546658,6.4808,154.28,154.25,6.4817]
[1752063546861,2.9617215,154.3,154.24,2.9617215]
[1752063547252,6.4807,154.29,154.25,6.4819]
[1752063547458,6.4807,154.29,154.24,2.9617215]
[1752063548361,6.4808,154.28,154.25,6.4818]
[1752063549457,562.0347,154.33,154.17,2.1924]
[1752063549661,2.9617215,154.29,154.17,2.1924]
[1752063549863,2.9617215,154.27,154.19,2.9617215]
[1752063550372,2.9617215,154.32,154.19,2.9617215]
[1752063550571,6.482,154.26,154.22,6.483]
[1752063551972,6.482,154.25,154.22,6.483]
[1752063553271,6.482,154.25,154.22,6.52805884]
[1752063553570,0.04145129,154.25,154.23,6.4828]
[1752063556170,0.04145129,154.25,154.24,6.4824]
[1752063557672,6.4801,154.3,154.27,6.481]
[1752063557973,2.9617215,154.31,154.23,2.9617215]
[1752063558170,8.8889019,154.3,154.25,6.4816]
[1752063558384,2.9617215,154.29,154.21,2.9617215]
[1752063558676,6.4818,154.26,154.21,2.9617215]
[1752063558878,6.4818,154.26,154.23,6.4825]
[1752063559074,2.9617215,154.29,154.23,0.04373063]
[1752063559374,2.9617215,154.29,154.23,3.00545213]
[1752063559579,9.4423215,154.29,154.26,6.4814]
[1752063560376,6.4808,154.28,154.26,6.4814]
[1752063560575,2.9617215,154.31,154.23,3.00545213]
[1752063561170,2.9617215,154.31,154.25,2.9617215]
[1752063561381,562.0347,154.33,154.25,2.9617215]
[1752063561579,8.91572756,154.32,154.25,2.9617215]
[1752063561780,564.9964215,154.33,154.25,2.9617215]
[1752063561982,564.9964215,154.33,154.27,0.04972219]
[1752063562176,559.74,154.33,154.28,6.4805]
[1752063562481,6.4802,154.3,154.27,0.04972219]
[1752063562684,2.9617215,154.3,154.27,0.04972219]
[1752063563176,562.7017215,154.33,154.27,0.04972219]
[1752063563377,559.74,154.33,154.27,3.01144369]
[1752063563582,6.4791,154.32,154.27,3.01144369]
[1752063563775,559.74,154.33,154.27,0.04972219]
[1752063564179,6.4796,154.31,154.28,6.4805]
[1752063565183,6.48,154.3,154.27,6.53072219]
[1752063565380,2.9617215,154.32,154.27,0.04972219]
[1752063565676,6.4803,154.3,154.27,0.04972219]
[1752063566478,6.4803,154.3,154.27,6.53082219]
[1752063566681,6.4803,154.3,154.27,0.04972219]
[1752063566878,6.4796,154.31,154.28,6.4805]
[1752063567078,9.08107628,154.38,154.28,12.9615]
[1752063567280,5.51006781,154.37,154.33,17.93985839]
[1752063567576,2.1459,154.48,154.36,2.95099597]
[1752063567577,2.95099597,154.44,154.36,2.95099597]
[1752063567792,2.95099597,154.42,154.34,2.95099597]
[1752063568284,6.4747,154.43,154.36,3.00014662]
[1752063568683,6.4751,154.42,154.38,6.4763]
[1752063568885,6.4751,154.42,154.38,6.51870104]
[1752063569882,6.4755,154.41,154.38,0.04240104]
[1752063570082,2.95099597,154.44,154.38,0.04240104]
[1752063570387,2.3508,154.43,154.38,0.04240104]
[1752063570582,6.476,154.4,154.38,0.04240104]
[1752063571078,2.3508,154.43,154.38,0.04240104]
[1752063571582,6.4755,154.41,154.38,0.04240104]
[1752063571783,6.4755,154.41,154.38,6.51890104]
[1752063572283,2.3508,154.43,154.38,6.51890104]
[1752063573179,2.95099597,154.42,154.38,0.04240104]
[1752063573581,2.1459,154.48,154.38,0.04240104]
[1752063573780,2.95099597,154.47,154.4,6.4755]
[1752063574180,6.4744,154.44,154.42,0.04295693]
[1752063575778,2.1459,154.48,154.42,0.04295693]
[1752063575982,559.48,154.5,154.42,2.9939529]
[1752063576289,6.4726,154.48,154.45,6.4735]
[1752063576481,92.62204812,154.52,154.46,2.95099597]
[1752063576881,6.4714,154.51,154.48,6.4722]
[1752063577081,2.2607,154.55,154.47,0.04414338]
[1752063577280,2.95099597,154.54,154.48,2.95099597]
[1752063577485,2.95099597,154.54,154.47,0.04414338]
[1752063578076,2.95099597,154.5,154.47,0.04414338]
[1752063578284,2.95099597,154.48,154.41,2.2526]
[1752063578578,2.95099597,154.48,154.42,6.4748]
[1752063578782,2.95099597,154.48,154.4,2.95099597]
[1752063579090,6.4739,154.45,154.41,6.475]
[1752063579586,2.95099597,154.48,154.41,6.475]
[1752063579587,2.95099597,154.46,154.41,6.4753]
[1752063579775,2.95099597,154.46,154.37,561.5868]
[1752063579977,6.4743,154.44,154.4,6.4755]
[1752063580686,6.4743,154.44,154.39,2.95099597]
[1752063580886,6.4743,154.44,154.37,561.5868]
[1752063581087,6.4743,154.44,154.38,4.42554984]
[1752063581391,4.42554984,154.48,154.42,6.4746]
[1752063581584,9.1685399,154.51,154.42,4.42554984]
[1752063581789,6.4728,154.47,154.42,4.42554984]
[1752063582189,6.4725,154.48,154.42,4.42554984]
[1752063582986,6.4725,154.48,154.37,568.5868]
[1752063583300,6.4721,154.49,154.45,6.4733]
[1752063583692,11.65530588,154.53,154.49,6.4717]
[1752063583894,5.18480588,154.53,154.49,4.42554984]
[1752063584287,5.18480588,154.53,154.51,6.4711]
[1752063584486,5.18480588,154.53,154.49,4.42554984]
[1752063585392,5.18480588,154.53,154.5,6.4712]
[1752063585693,5.18480588,154.53,154.47,4.42554984]
[1752063585882,5.18480588,154.53,154.48,6.4721]
[1752063586288,5.18480588,154.53,154.45,6.62404984]
[1752063586792,6.4714,154.51,154.47,6.4725]
[1752063587694,5.18480588,154.53,154.47,4.42554984]
[1752063588195,11.65530588,154.53,154.49,6.4716]
[1752063588899,11.65530588,154.53,154.5,6.4714]
[1752063589089,5.18480588,154.53,154.5,6.4714]
[1752063590195,11.65530588,154.53,154.5,6.4714]
[1752063590596,5.18480588,154.53,154.47,4.42554984]